fUSD/lending_fUSD_20240918
["ID","MTS","AMOUNT","RATE_DAILY","PERIOD"]
[338455697,1726653913598,230.75735862,0.00011832,2]
[338455698,1726653913920,230.75735862,0.00011845,2]
[338455699,1726653914017,230.75735862,0.00011858,2]
[338455700,1726653914227,230.75735862,0.00011871,2]
[338455701,1726653914560,230.75735862,0.00011884,2]
[338455702,1726653915019,230.75735862,0.00011898,2]
[338455703,1726653915300,230.75735862,0.00011911,2]
[338455704,1726653915658,230.75735862,0.00011924,2]
[338455705,1726653916056,230.75735862,0.00011937,2]
[338455706,1726653916394,230.75735862,0.0001195,2]
[338455707,1726653916855,230.75735862,0.00011963,2]
[338455708,1726653917081,230.75735862,0.00011976,2]
[338455709,1726653917408,230.75735862,0.00011989,2]
[338455710,1726653917850,230.75735862,0.00012002,2]
[338455711,1726653918095,230.75735862,0.00012016,2]
[338455712,1726653918410,230.75735862,0.00012029,2]
[338455713,1726653918741,230.75735862,0.00012042,2]
[338455714,1726653919248,230.75735862,0.00012055,2]
[338455715,1726653919603,230.75735862,0.00012068,2]
[338455716,1726653919924,230.75735862,0.00012081,2]
[338455717,1726653920236,230.75735862,0.00012094,2]
[338455718,1726653920991,230.75735862,0.00012107,2]
[338455719,1726653921347,230.75735862,0.00012121,2]
[338455720,1726653923373,230.75735862,0.00012134,2]
[338455721,1726653923739,230.75735862,0.00012147,2]
[338455722,1726653925275,230.75735862,0.0001216,2]
[338455723,1726653925618,230.75735862,0.00012173,2]
[338455724,1726653926405,230.75735862,0.00012186,2]
[338455725,1726653928831,230.75735862,0.00012199,2]
[338455726,1726653929288,230.75735862,0.00012212,2]
[338455727,1726653929669,230.75735862,0.00012225,2]
[338455728,1726653929938,230.75735862,0.00012239,2]
[338455729,1726653930265,230.75735862,0.00012252,2]
[338455730,1726653932024,230.75735862,0.00012265,2]
[338455731,1726653932146,230.75735862,0.00012278,2]
[338455732,1726653932247,230.75735862,0.00012291,2]
[338455733,1726653932452,230.75735862,0.00012304,2]
[338455734,1726653932558,230.75735862,0.00012317,2]
[338455735,1726653932881,230.75735862,0.0001233,2]
[338455736,1726653933270,230.75735862,0.00012344,2]
[338455737,1726653933573,230.75735862,0.00012357,2]
[338455738,1726653933986,230.75735862,0.0001237,2]
[338455739,1726653934338,230.75735862,0.00012383,2]
[338455740,1726653934714,230.75735862,0.00012396,2]
[338455741,1726653935086,230.75735862,0.00012409,2]
[338455742,1726653935854,230.75735862,0.00012422,2]
[338455743,1726653936037,277.48,0.00010946,2]
[338455744,1726653936170,230.75735862,0.00012435,2]
[338455745,1726653936508,230.75735862,0.00012448,2]
[338455746,1726653936826,230.75735862,0.00012462,2]
[338455747,1726653937131,230.75735862,0.00012475,2]
[338455748,1726653937465,230.75735862,0.00012488,2]
[338455749,1726653937815,230.75735862,0.00012501,2]
[338455750,1726653938155,230.75735862,0.00012514,2]
[338455751,1726653938493,230.75735862,0.00012527,2]
[338455752,1726653938832,230.75735862,0.0001254,2]
[338455753,1726653939252,230.75735862,0.00012553,2]
[338455754,1726653939524,230.75735862,0.00012567,2]
[338455755,1726653939837,230.75735862,0.0001258,2]
[338455756,1726653940197,230.75735862,0.00012593,2]
[338455757,1726653940617,230.75735862,0.00012606,2]
[338455758,1726653940862,230.75735862,0.00012619,2]
[338455759,1726653941243,230.75735862,0.00012632,2]
[338455760,1726653952827,184.05200933,0.00011688,2]
[338455761,1726653953063,184.05200933,0.00011701,2]
[338455762,1726653953401,184.05200933,0.00011714,2]
[338455763,1726653954247,184.05200933,0.00011727,2]
[338455764,1726653954405,184.05200933,0.0001174,2]
[338455765,1726653955036,184.05200933,0.00011753,2]
[338455766,1726653955161,184.05200933,0.00011766,2]
[338455767,1726653955503,184.05200933,0.00011779,2]
[338455768,1726653955864,184.05200933,0.00011793,2]
[338455769,1726653956568,184.05200933,0.00011806,2]
[338455770,1726653956797,184.05200933,0.00011819,2]
[338455771,1726653956946,184.05200933,0.00011832,2]
[338455772,1726653957292,184.05200933,0.00011845,2]
[338455773,1726653957583,184.05200933,0.00011858,2]
[338455774,1726653957909,184.05200933,0.00011871,2]
[338455775,1726653958279,184.05200933,0.00011884,2]
[338455776,1726653958602,184.05200933,0.00011898,2]
[338455777,1726653958947,184.05200933,0.00011911,2]
[338455778,1726653959322,184.05200933,0.00011924,2]
[338455779,1726653959811,184.05200933,0.00011937,2]
[338455780,1726653960198,184.05200933,0.0001195,2]
[338455781,1726653960423,184.05200933,0.00011963,2]
[338455782,1726653960827,184.05200933,0.00011976,2]
[338455783,1726653961341,184.05200933,0.00011989,2]
[338455784,1726653962567,184.05200933,0.00012002,2]
[338455785,1726653962744,184.05200933,0.00012016,2]
[338455786,1726653963086,184.05200933,0.00012029,2]
[338455787,1726653963419,184.05200933,0.00012042,2]
[338455788,1726653963730,184.05200933,0.00012055,2]
[338455789,1726653964058,184.05200933,0.00012068,2]
[338455790,1726653964870,184.05200933,0.00012081,2]
[338455791,1726653965033,184.05200933,0.00012094,2]
[338455792,1726653965190,184.05200933,0.00012107,2]
[338455793,1726653965394,184.05200933,0.00012121,2]
[338455794,1726653966153,184.05200933,0.00012134,2]
[338455795,1726653966784,184.05200933,0.00012147,2]
[338455796,1726653967105,184.05200933,0.0001216,2]
[338455797,1726653967225,184.05200933,0.00012173,2]
[338455798,1726653967988,184.05200933,0.00012186,2]
[338455799,1726653968286,184.05200933,0.00012199,2]
[338455800,1726653968683,184.05200933,0.00012212,2]
[338455801,1726653969075,184.05200933,0.00012225,2]
[338455802,1726653969416,184.05200933,0.00012239,2]
[338455803,1726653969685,184.05200933,0.00012252,2]
[338455804,1726653969984,184.05200933,0.00012265,2]
[338455805,1726653970326,184.05200933,0.00012278,2]
[338455806,1726653970669,184.05200933,0.00012291,2]
[338455807,1726653971036,184.05200933,0.00012304,2]
[338455808,1726653971326,184.05200933,0.00012317,2]
[338455809,1726653971875,184.05200933,0.0001233,2]
[338455810,1726653972117,184.05200933,0.00012344,2]
[338455811,1726653972424,184.05200933,0.00012357,2]
[338455812,1726653972701,184.05200933,0.0001237,2]
[338455813,1726653973174,184.05200933,0.00012383,2]
[338455814,1726653973446,184.05200933,0.00012396,2]
[338455815,1726653973688,184.05200933,0.00012409,2]
[338455816,1726653974050,184.05200933,0.00012422,2]
[338455817,1726653974312,184.05200933,0.00012435,2]
[338455818,1726653974666,184.05200933,0.00012448,2]
[338455819,1726653976028,184.05200933,0.00012462,2]
[338455820,1726653976498,184.05200933,0.00012475,2]
[338455821,1726653976986,184.05200933,0.00012488,2]
[338455822,1726653977495,184.05200933,0.00012501,2]
[338455823,1726653977821,184.05200933,0.00012514,2]
[338455824,1726653977961,184.05200933,0.00012527,2]
[338455825,1726653978203,184.05200933,0.0001254,2]
[338455826,1726653978349,184.05200933,0.00012553,2]
[338455827,1726653979200,184.05200933,0.00012567,2]
[338455828,1726653979437,184.05200933,0.0001258,2]
[338455829,1726653979649,184.05200933,0.00012593,2]
[338455830,1726653979762,184.05200933,0.00012606,2]
[338455831,1726653979883,184.05200933,0.00012619,2]
[338455832,1726653980234,184.05200933,0.00012632,2]
[338455833,1726653997676,150.0,0.00011688,2]
[338455834,1726653997816,150.0,0.00011714,2]
[338455835,1726653997937,150.0,0.0001174,2]
[338455836,1726653998241,150.0,0.00011766,2]
[338455837,1726653998493,150.0,0.00011792,2]
[338455838,1726653998929,150.0,0.00011818,2]
[338455839,1726653999264,150.0,0.00011844,2]
[338455840,1726653999662,150.0,0.00011869,2]
[338455841,1726653999938,150.0,0.00011895,2]
[338455842,1726654000415,150.0,0.00011921,2]
[338455843,1726654000658,150.0,0.00011947,2]
[338455844,1726654000980,150.0,0.00011973,2]
[338455845,1726654001439,150.0,0.00011999,2]
[338455846,1726654001970,150.0,0.00012025,2]
[338455847,1726654002115,150.0,0.00012051,2]
[338455848,1726654002354,150.0,0.00012077,2]
[338455849,1726654002840,150.0,0.00012103,2]
[338455850,1726654003310,150.0,0.00012129,2]
[338455851,1726654003567,150.0,0.00012155,2]
[338455852,1726654003948,150.0,0.00012181,2]
[338455853,1726654004359,150.0,0.00012207,2]
[338455854,1726654004704,150.0,0.00012233,2]
[338455855,1726654005061,150.0,0.00012259,2]
[338455856,1726654005378,150.0,0.00012285,2]
[338455857,1726654005700,150.0,0.00012311,2]
[338455858,1726654006016,150.0,0.00012337,2]
[338455859,1726654006425,150.0,0.00012363,2]
[338455860,1726654006737,150.0,0.00012389,2]
[338455861,1726654007033,150.0,0.00012415,2]
[338455862,1726654007609,150.0,0.00012441,2]
[338455863,1726654008769,150.0,0.00012467,2]
[338455864,1726654008929,150.0,0.00012493,2]
[338455865,1726654009052,150.0,0.00012519,2]
[338455866,1726654009397,150.0,0.00012545,2]
[338455867,1726654009774,150.0,0.00012571,2]
[338455868,1726654009975,150.0,0.00012597,2]
[338455869,1726654010858,150.0,0.00012623,2]
[338455870,1726654025740,150.0,0.00011688,2]
[338455871,1726654026089,150.0,0.00011718,2]
[338455872,1726654026875,150.0,0.00011748,2]
[338455873,1726654027184,150.0,0.00011778,2]
[338455874,1726654027661,150.0,0.00011808,2]
[338455875,1726654027979,150.0,0.00011839,2]
[338455876,1726654028306,150.0,0.00011869,2]
[338455877,1726654028867,150.0,0.00011899,2]
[338455878,1726654029227,150.0,0.00011929,2]
[338455879,1726654030377,150.0,0.00011959,2]
[338455880,1726654030630,150.0,0.0001199,2]
[338455881,1726654035537,150.0,0.0001202,2]
[338455882,1726654035933,150.0,0.0001205,2]
[338455883,1726654036669,150.0,0.0001208,2]
[338455884,1726654036997,150.0,0.0001211,2]
[338455885,1726654037301,150.0,0.00012141,2]
[338455886,1726654037696,150.0,0.00012171,2]
[338455887,1726654037982,150.0,0.00012201,2]
[338455888,1726654038326,150.0,0.00012231,2]
[338455889,1726654038765,150.0,0.00012261,2]
[338455890,1726654039035,150.0,0.00012292,2]
[338455891,1726654039393,150.0,0.00012322,2]
[338455892,1726654039889,150.0,0.00012352,2]
[338455893,1726654040131,150.0,0.00012382,2]
[338455894,1726654041033,150.0,0.00012412,2]
[338455895,1726654041216,150.0,0.00012443,2]
[338455896,1726654041478,150.0,0.00012473,2]
[338455897,1726654041805,150.0,0.00012503,2]
[338455898,1726654047295,150.0,0.00012533,2]
[338455899,1726654047660,150.0,0.00012563,2]
[338455900,1726654048041,150.0,0.00012594,2]
[338455901,1726654048320,150.0,0.00012624,2]
[338455902,1726654057558,150.0,0.00011688,2]
[338455907,1726654161934,-230.75735862,0.00012645,2]
[338455908,1726654161961,-184.05200933,0.00012645,2]
[338455910,1726654161988,-150.0,0.00012649,2]
[338455911,1726654162023,-150.0,0.00012654,2]
[338455913,1726654162050,-230.75735862,0.00012658,2]
[338455914,1726654162076,-184.05200933,0.00012658,2]
[338455915,1726654162105,-230.75735862,0.00012671,2]
[338455916,1726654162134,-184.05200933,0.00012671,2]
[338455917,1726654162163,-150.0,0.00012675,2]
[338455918,1726654162190,-150.0,0.00012684,2]
[338455919,1726654162218,-213.85924216,0.00012685,2]
[338455953,1726654232216,-151.29,0.00012675,2]
[338455954,1726654232226,-16.89811646,0.00012685,2]
[338455955,1726654232236,-109.88867198,0.00012685,2]
[338455956,1726654232362,-74.16333735,0.00012685,2]
[338455957,1726654232372,-165.63091281,0.0001269,2]
[338455958,1726654232382,-230.75735862,0.00012698,2]
[338455959,1726654232392,-184.05200933,0.00012698,2]
[338455960,1726654232401,-150.0,0.00012701,2]
[338455961,1726654232410,-230.75735862,0.00012711,2]
[338455962,1726654232420,-184.05200933,0.00012711,2]
[338455963,1726654232429,-238.58701394,0.00012711,2]
[338455964,1726654232441,-261.40298606,0.00012711,2]
[338455965,1726654232451,-150.0,0.00012714,2]
[338455966,1726654232460,-230.75735862,0.00012724,2]
[338455967,1726654232470,-184.05200933,0.00012724,2]
[338455968,1726654232479,-150.0,0.00012727,2]
[338455969,1726654232489,-230.75735862,0.00012737,2]
[338455970,1726654232498,-184.05200933,0.00012737,2]
[338455971,1726654232508,-150.0,0.00012745,2]
[338455972,1726654232517,-230.75735862,0.0001275,2]
[338455973,1726654232530,-184.05200933,0.0001275,2]
[338455974,1726654232540,-150.0,0.00012753,2]
[338455975,1726654232550,-230.75735862,0.00012763,2]
[338455976,1726654232565,-184.05200933,0.00012763,2]
[338455977,1726654232576,-150.0,0.00012775,2]
[338455978,1726654232585,-230.75735862,0.00012776,2]
[338455979,1726654232594,-184.05200933,0.00012776,2]
[338455980,1726654232604,-150.0,0.00012779,2]
[338455981,1726654232613,-300.0,0.00012789,2]
[338455982,1726654232623,-230.75735862,0.0001279,2]
[338455984,1726654232632,-115.76149467,0.0001279,2]
[338455990,1726654232685,-68.29051466,0.0001279,2]
[338455994,1726654232796,-150.0,0.0001279,2]
[338455995,1726654232811,-1638.399,0.000128,2]
[338455996,1726654232822,-230.75735862,0.00012803,2]
[338455997,1726654232831,-184.05200933,0.00012803,2]
[338455998,1726654232840,-150.0,0.00012804,2]
[338455999,1726654232849,-150.0,0.00012805,2]
[338456000,1726654232858,-230.75735862,0.00012816,2]
[338456001,1726654232867,-184.05200933,0.00012816,2]
[338456002,1726654232876,-230.75735862,0.00012829,2]
[338456003,1726654232885,-184.05200933,0.00012829,2]
[338456004,1726654232894,-150.0,0.0001283,2]
[338456005,1726654232903,-150.0,0.00012835,2]
[338456006,1726654232912,-230.75735862,0.00012842,2]
[338456007,1726654232921,-184.05200933,0.00012842,2]
[338456008,1726654232930,-151.29,0.00012854,2]
[338456009,1726654232940,-230.75735862,0.00012855,2]
[338456010,1726654232950,-184.05200933,0.00012855,2]
[338456011,1726654232960,-150.0,0.00012856,2]
[338456012,1726654232969,-169.59,0.00012864,2]
[338456013,1726654232978,-173.79,0.00012864,2]
[338456014,1726654232987,-585.64,0.00012864,2]
[338456015,1726654232997,-521.59212349,0.00012864,2]
[338456016,1726654238104,249.21,0.00010959,2]
[338456017,1726654238445,-2250.84378993,0.00012864,2]
[338456180,1726654240224,-5984.8,0.00012864,2]
[338456183,1726654240236,-727.0502031,0.00012864,2]
[338456185,1726654240248,-395.48039178,0.00012864,2]
[338456187,1726654240259,-1247.19195163,0.00012864,2]
[338456190,1726654240275,-3517.2797996,0.00012864,2]
[338456192,1726654240286,-265.9418,0.00012864,2]
[338456194,1726654240298,-332.54659203,0.00012864,2]
[338456200,1726654240348,-897.893506,0.00012864,2]
[338456321,1726654241527,-547.52749393,0.00012864,2]
[338456323,1726654241538,-3884.44144592,0.00012864,2]
[338456325,1726654241550,-996.45,0.00012864,2]
[338456327,1726654241563,-2190.83165,0.00012864,2]
[338456329,1726654241575,-140.12925259,0.00012864,2]
[338456331,1726654241585,-250.0,0.00012864,2]
[338456333,1726654241595,-1000.0,0.00012864,2]
[338456335,1726654241605,-250.0,0.00012864,2]
[338456337,1726654241615,-162.33,0.00012864,2]
[338456339,1726654241624,-1209.06283809,0.00012864,2]
[338456343,1726654241653,-14.08716191,0.00012864,2]
[338456345,1726654241663,-250.0,0.00012864,2]
[338456347,1726654241675,-163.9,0.00012864,2]
[338456349,1726654241686,-150.0,0.00012865,2]
[338456351,1726654241695,-152.08408575,0.00012868,2]
[338456600,1726654244151,-78.67327287,0.00012868,2]
[338456602,1726654244161,-184.05200933,0.00012868,2]
[338456604,1726654244171,-230.75735862,0.00012881,2]
[338456606,1726654244181,-184.05200933,0.00012881,2]
[338456608,1726654244191,-150.0,0.00012882,2]
[338456610,1726654244201,-163.9,0.00012885,2]
[338456612,1726654244211,-230.75735862,0.00012894,2]
[338456614,1726654244221,-184.05200933,0.00012894,2]
[338456616,1726654244231,-150.0,0.00012896,2]
[338456618,1726654244240,-326.9348,0.000129,2]
[338456620,1726654244250,-169.16741669,0.000129,2]
[338456622,1726654244260,-3041.88638606,0.000129,2]
[338456624,1726654244271,-163.9,0.00012906,2]
[338456626,1726654244282,-230.75735862,0.00012908,2]
[338456628,1726654244292,-184.05200933,0.00012908,2]
[338456629,1726654244302,-150.0,0.00012908,2]
[338456632,1726654244312,-230.75735862,0.00012921,2]
[338456633,1726654244322,-184.05200933,0.00012921,2]
[338456635,1726654244331,-150.0,0.00012926,2]
[338456637,1726654244341,-163.9,0.00012928,2]
[338456639,1726654244351,-230.75735862,0.00012934,2]
[338456641,1726654244360,-184.05200933,0.00012934,2]
[338456643,1726654244370,-150.0,0.00012934,2]
[338456645,1726654244380,-230.75735862,0.00012947,2]
[338456647,1726654244390,-184.05200933,0.00012947,2]
[338456649,1726654244399,-150.0,0.00012956,2]
[338456651,1726654244409,-230.75735862,0.0001296,2]
[338456653,1726654244419,-184.05200933,0.0001296,2]
[338456655,1726654244429,-150.0,0.0001296,2]
[338456657,1726654244439,-7170.291,0.00012968,2]
[338456659,1726654244448,-150.0,0.00012968,2]
[338456661,1726654244457,-1145.0,0.00012968,2]
[338456663,1726654244467,-230.75735862,0.00012973,2]
[338456665,1726654244476,-184.05200933,0.00012973,2]
[338456667,1726654244486,-230.75735862,0.00012986,2]
[338456669,1726654244495,-184.05200933,0.00012986,2]
[338456671,1726654244504,-287.31967874,0.00012986,2]
[338456673,1726654244513,-271.39998586,0.00012986,2]
[338456675,1726654244522,-168.96605139,0.00012986,2]
[338456677,1726654244532,-152.45,0.0001299,2]
[338456679,1726654244541,-152.45,0.0001299,2]
[338456681,1726654244551,-556.7914119,0.00012994,2]
[338456683,1726654244561,-11011.12011,0.00012994,2]
[338456685,1726654244572,-556.7914113,0.00012994,2]
[338456687,1726654244581,-1524.3080662,0.00012994,2]
[338456689,1726654244590,-536.4956531,0.00012994,2]
[338456690,1726654244599,-556.7914113,0.00012994,2]
[338456692,1726654244608,-2000.0,0.00012998,2]
[338456694,1726654244618,-150.0,0.00012998,2]
[338456696,1726654244627,-150.0,0.00012998,2]
[338456698,1726654244637,-1916.0,0.00012998,2]
[338456700,1726654244646,-1067.82524521,0.00012999,3]
[338456702,1726654244656,-1067.82524521,0.00012999,3]
[338456704,1726654244665,-1067.82524521,0.00012999,3]
[338456706,1726654244677,-1067.82524521,0.00012999,3]
[338456708,1726654244687,-1067.82524518,0.00012999,3]
[338456710,1726654244696,-1067.82524521,0.00012999,3]
[338456712,1726654244707,-1067.82524521,0.00012999,3]
[338456715,1726654244716,-1067.82524521,0.00012999,3]
[338456717,1726654244726,-615.0,0.00013,2]
[338456719,1726654244735,-233187.69311822,0.00013,2]
[338456721,1726654244745,-122845.58608561,0.00013,2]
[338456728,1726654244803,-81701.01541003,0.00013,2]
[338456885,1726654247126,-1198.4,0.00013,2]
[338456886,1726654247165,-2392.0,0.00013,2]
[338456887,1726654247608,-1298.10000012,0.00013,2]
[338456888,1726654247621,-10656.8586587,0.00013,2]
[338456889,1726654247634,-387.292,0.00013,2]
[338457507,1726654516231,298.38,0.00010946,2]
[338457508,1726655110510,150.00000051,0.00011688,2]
[338457509,1726655112891,150.0,0.00011688,2]
[338457510,1726655125240,150.0,0.00011688,2]
[338457511,1726655125278,972.06636876,0.000108,2]
[338457512,1726655127919,150.0,0.00011688,2]
[338457513,1726655128253,150.0,0.00012012,2]
[338457514,1726655128910,150.0,0.00012337,2]
[338457515,1726655129423,579.94515437,0.000101,2]
[338457516,1726655153946,555.83662987,6.94e-05,2]
[338457517,1726655159591,283.46,0.00010946,2]
[338457519,1726655279245,833.94057283,0.0001,2]
[338457531,1726655432318,-150.0,0.00012662,2]
[338457532,1726655432328,-150.0,0.00012726,2]
[338457533,1726655432338,-150.0,0.00012727,2]
[338457534,1726655432348,-300.0,0.00012737,2]
[338457535,1726655432358,-150.0,0.00012739,2]
[338457536,1726655432367,-257.0,0.00012741,2]
[338457537,1726655432376,-150.0,0.00012745,2]
[338457538,1726655432386,-150.0,0.00012749,2]
[338457539,1726655432395,-150.0,0.00012749,2]
[338457540,1726655432404,-150.0,0.00012753,2]
[338457541,1726655432414,-150.0,0.00012753,2]
[338457542,1726655432423,-150.0,0.0001277,2]
[338457543,1726655432434,-150.0,0.00012773,2]
[338457544,1726655432444,-350.32,0.00012773,2]
[338457545,1726655432454,-150.0,0.00012776,2]
[338457546,1726655432463,-150.0,0.00012778,2]
[338457547,1726655432472,-150.0,0.00012778,2]
[338457548,1726655432482,-150.0,0.00012783,2]
[338457549,1726655432492,-255.0,0.00012787,2]
[338457550,1726655432501,-150.0,0.00012789,2]
[338457551,1726655432510,-150.0,0.00012794,2]
[338457552,1726655432520,-150.0,0.00012798,2]
[338457553,1726655432530,-3016.42176839,0.000128,2]
[338457554,1726655432541,-335.92939992,0.000128,2]
[338457555,1726655432553,-348.89010204,0.000128,2]
[338457556,1726655432564,-334.50747262,0.000128,2]
[338457557,1726655432599,-358.935,0.000128,2]
[338457558,1726655432610,-566.54007379,0.000128,2]
[338457559,1726655432789,-2438.81374445,0.000128,2]
[338457560,1726655432800,-345.5,0.000128,2]
[338457561,1726655432811,-1797.40548677,0.000128,2]
[338457562,1726655432822,-5719.50471788,0.000128,2]
[338457563,1726655432834,-594.99826677,0.000128,2]
[338457564,1726655432856,-834.81196786,0.000128,2]
[338457574,1726655438329,-291.74199951,0.000128,2]
[338457575,1726655438339,-150.0,0.00012807,2]
[338457576,1726655438349,-150.0,0.00012809,2]
[338457577,1726655438358,-262.75255236,0.00012821,2]
[338457578,1726655438367,-150.0,0.00012826,2]
[338457579,1726655438377,-150.0,0.00012831,2]
[338457580,1726655438387,-150.0,0.00012832,2]
[338457581,1726655438397,-150.0,0.00012845,2]
[338457582,1726655438408,-150.0,0.00012855,2]
[338457583,1726655438417,-77.54822243,0.00012857,2]
[338457584,1726655438430,-72.45177757,0.00012857,2]
[338457585,1726655438441,-169.17,0.00012864,2]
[338457586,1726655438450,-56.62822243,0.00012864,2]
[338457683,1726655440499,-340.97177757,0.00012864,2]
[338457684,1726655440509,-200.0,0.00012864,2]
[338457685,1726655440519,-1866.08,0.00012864,2]
[338457686,1726655440528,-548.0,0.00012864,2]
[338457687,1726655440537,-1000.0,0.00012864,2]
[338457688,1726655440547,-250.0,0.00012864,2]
[338457689,1726655440557,-159.53,0.00012864,2]
[338457690,1726655440567,-3137.72,0.00012864,2]
[338457691,1726655440576,-250.0,0.00012864,2]
[338457692,1726655440585,-250.0,0.00012864,2]
[338457693,1726655440595,-150.0,0.00012864,2]
[338457694,1726655440606,-3645.00150052,0.0001287,2]
[338457695,1726655440615,-2089.63166688,0.0001287,2]
[338457696,1726655440624,-408.9014,0.00012877,2]
[338457697,1726655440634,-99191.82802693,0.0001288,2]
[338457908,1726655443331,-56781.47980791,0.0001288,2]
[338457909,1726655443343,-344.02839727,0.0001288,2]
[338457912,1726655443953,-1041.4084361,0.0001288,2]
[338457917,1726655444030,-700.1734372,0.0001288,2]
[338457919,1726655444042,-294.14994472,0.0001288,2]
[338457921,1726655444053,-1326.30959715,0.0001288,2]
[338457927,1726655444097,-21220.78577,0.0001288,2]
[338457929,1726655444109,-34426.799998,0.0001288,2]
[338457931,1726655444120,-392.29490377,0.0001288,2]
[338457933,1726655444132,-8140.2985015,0.0001288,2]
[338457936,1726655444143,-1490.79089986,0.0001288,2]
[338457938,1726655444156,-772.82854254,0.0001288,2]
[338457940,1726655444168,-6655.27794624,0.0001288,2]
[338457947,1726655444224,-2500.0,0.0001288,2]
[338457956,1726655444305,-1806.49803386,0.0001288,2]
[338457963,1726655444355,-12611.58875453,0.0001288,2]
[338457965,1726655444367,-261.4769987,0.0001288,2]
[338457967,1726655444380,-148529.24105152,0.0001288,2]
[338457969,1726655444390,-150.0,0.00012885,2]
[338457972,1726655444399,-152.38,0.0001289,2]
[338457974,1726655444409,-150.0,0.0001289,2]
[338457975,1726655444418,-150.0,0.00012893,2]
[338457977,1726655444428,-500.0,0.00012894,2]
[338457979,1726655444437,-200.0,0.00012894,2]
[338457980,1726655444448,-500.0,0.00012895,2]
[338457981,1726655444458,-500.0,0.00012895,2]
[338457982,1726655444467,-200.0,0.00012895,2]
[338457983,1726655444477,-500.0,0.00012895,2]
[338457984,1726655444486,-500.0,0.00012895,2]
[338457985,1726655444495,-200.0,0.00012895,2]
[338457986,1726655444506,-209.0038,0.000129,2]
[338457987,1726655444515,-22705.5772,0.000129,2]
[338457988,1726655444525,-40425.6889,0.000129,2]
[338457989,1726655444535,-1720.762,0.000129,2]
[338457990,1726655444544,-283.9564,0.000129,2]
[338457991,1726655444554,-13459.7067,0.000129,2]
[338457992,1726655444563,-897.8283,0.000129,2]
[338457993,1726655444573,-8668.4252,0.000129,2]
[338457994,1726655444584,-14353.5755,0.000129,2]
[338457995,1726655444593,-1076.0,0.000129,2]
[338457996,1726655444603,-176.40967186,0.000129,2]
[338457997,1726655444612,-152.59925876,0.000129,2]
[338457998,1726655444622,-5872.5511246,0.000129,2]
[338457999,1726655444631,-1219.5522,0.000129,2]
[338458001,1726655444640,-2027.92425738,0.000129,2]
[338458002,1726655444650,-150.0,0.00012912,2]
[338458004,1726655444659,-150.0,0.0001292,2]
[338458006,1726655444668,-175.745,0.00012923,2]
[338458008,1726655444678,-150.0,0.00012929,2]
[338458010,1726655444687,-150.0,0.00012935,2]
[338458011,1726655444697,-150.0,0.00012936,2]
[338458013,1726655444707,-150.0,0.00012937,2]
[338458015,1726655444716,-150.0,0.00012971,2]
[338458017,1726655444726,-500.62954566,0.00012973,2]
[338458019,1726655444735,-500.0,0.00012973,2]
[338458021,1726655444744,-1000.0,0.00012978,2]
[338458023,1726655444754,-150.00000008,0.00012986,2]
[338458025,1726655444763,-258.35414013,0.00012986,2]
[338458026,1726655444772,-164.67482091,0.0001299,2]
[338458028,1726655444781,-152.38,0.0001299,2]
[338458030,1726655444791,-164.67482091,0.0001299,2]
[338458032,1726655444800,-150.0,0.00012991,2]